[Event "Israeli Team-ch 2023"]
[Site "Petah Tikva"]
[Date "2023.02.10"]
[Round "7.11"]
[White "Oratovsky, Michael"]
[Black "Zaslavsky, Mikhail"]
[Result "1/2-1/2"]
[ECO "B31"]
[WhiteElo "2422"]
[BlackElo "2430"]
[Annotator "TA"]
[PlyCount "28"]
[EventDate "2023.01.13"]
[EventCountry "ISR"]
[SourceTitle "playchess.com"]
[Source "ChessBase"]
[SourceQuality "1"]
[TimeControl "40/5400+30:1800+30"]

{[%evp 19,28,16,18,10,20,0,9,12,17,14,24]} 1. e4 {[%emt 0:03:22]} c5 {[%emt 0:00:04]} 2. Nf3 {[%emt 0:00:08]} Nc6 {[%emt 0:00:04]} 3. Bb5 {[%emt 0:00:12]} g6 {[%emt 0:00:03]} 4. Bxc6 {[%emt 0:00:08]} dxc6 {[%emt 0:00:03]} 5. d3 {[%emt 0:00:09]} Bg7 {[%emt 0:00:02]} 6. h3 {[%emt 0:00:32]} Qc7 {[%emt 0:02:19]} 7. O-O {[%emt 0:13:04]} Nf6 {[%emt 0:00:10]} 8. Nc3 {[%emt 0:00:15]} e5 {[%emt 0:00:23]} 9. Be3 {[%emt 0:02:34]} b6 {[%emt 0:00:05]} 10. Qd2 {[%emt 0:02:02]} O-O {[%emt 0:00:05] The position is equal.} 11. Bh6 {[%emt 0:00:35] B31: Sicilian: 2...Nc6 3 Bb5 g6.} Nh5 {[%emt 0:00:37]} 12. Ne2 {[%emt 0:11:02]} f6 {[%emt 0:04:14]} 13. Nh2 {[%emt 0:28:11]} g5 {[%emt 0:03:45] [#]} 14. Ng4 $146 {[%emt 0:09:37]} ({Predecessor:} 14. Bxg7 Qxg7 15. Ng4 Be6 16. Ne3 Qd7 17. Ng3 Nf4 18. Qd1 Rad8 19. Ngf5 Kh8 20. Kh2 Bxf5 21. Nxf5 {½-½ Stojanovic,V-Kostic,B (2250) Belgrade-chT 2011 (5.5)}) 14... Bxh6 {[%emt 0:11:00] Not much happened in this game.   Weighted Error Value: White=0.07 (flawless) /Black=0.03 (flawless)} 1/2-1/2

[Event "Israeli Team-ch 2023"]
[Site "Petah Tikva"]
[Date "2023.02.10"]
[Round "7.12"]
[White "Kuprijanov, Anatoly"]
[Black "Guz, Ari"]
[Result "1/2-1/2"]
[ECO "D35"]
[WhiteElo "2270"]
[BlackElo "2306"]
[Annotator "TA"]
[PlyCount "80"]
[EventDate "2023.01.13"]
[EventCountry "ISR"]
[SourceTitle "playchess.com"]
[Source "ChessBase"]
[SourceQuality "1"]
[TimeControl "40/5400+30:1800+30"]

{[%evp 12,80,29,10,28,23,26,19,16,0,0,-53,-35,-60,0,0,0,-50,-42,-89,-95,-92,0,0,0,0,0,0,0,0,0,0,0,0,0,0,0,0,86,97,145,98,108,92,102,99,72,87,103,0,0,-8,-8,-8,-8,-8,-8,-11,0,0,0,-93,-93,-91,-100,-105,-68,-57,-36,-47,-34]} 1. c4 {[%emt 0:00:49]} e6 {[%emt 0:01:03]} 2. d4 {[%emt 0:02:18]} Nf6 {[%emt 0:00:13]} 3. Nc3 {[%emt 0:00:04]} d5 {[%emt 0:00:13]} 4. cxd5 {[%emt 0:00:05]} Nxd5 {[%emt 0:00:13]} 5. e4 {[%emt 0:01:04]} Nxc3 {[%emt 0:00:08]} 6. bxc3 {[%emt 0:00:04]} c5 {[%emt 0:00:08]} 7. Rb1 {[%emt 0:00:10]} cxd4 {[%emt 0:00:23] D35: Queen's Gambit Declined: Exchange Variation.} 8. cxd4 {[%emt 0:00:37]} Be7 {[%emt 0:00:08]} 9. Nf3 {[%emt 0:01:44]} O-O {[%emt 0:00:24] The position is equal.} 10. Be2 {[%emt 0:02:48]} b6 {[%emt 0:03:34] [#]} 11. h4 $146 {[%emt 0:13:52]} (11. O-O $11) ({Predecessor:} 11. O-O Bb7 12. Qd3 Nd7 13. Be3 Rc8 14. Rbc1 Rxc1 15. Rxc1 Qb8 16. Nd2 Rc8 17. Rxc8+ Qxc8 18. f3 Qc7 {½-½ Urkedal,F (2571)-Agdestein,S (2581) NOR-chT 1718 2017 (9.2)}) 11... Bb7 $15 {[%emt 0:06:21]} 12. Bd3 {[%emt 0:01:05] [#]} e5 {[%emt 0:15:47]} 13. d5 $11 {[%emt 0:06:03]} (13. dxe5 Na6 $15) 13... Nd7 {[%emt 0:01:08][%cal Bb8d7,Bd7c5,Bc5e4][%mdl 32]} 14. Rh3 {[%emt 0:07:36]} (14. O-O $11) 14... Nc5 $15 {[%emt 0:06:22]} 15. Rg3 {[%emt 0:19:14]} (15. Nxe5 $15 {was preferrable.} Bd6 16. Nc6) 15... f5 $17 {[%emt 0:12:50]} (15... Bxh4 $6 16. Nxh4 Qxh4 17. Rh3 $15) 16. Bc4 {[%emt 0:10:43] d6+ would be deadly.} Bf6 {[%emt 0:05:29]} (16... Bxh4 17. Rh3 Bxf2+ 18. Kxf2 $18) (16... Kh8 $17 17. Ng5 Bxg5 18. Bxg5 Qd7 19. exf5 (19. Bb5 Qf7 $17) 19... Ne4) 17. Ng5 $11 {[%emt 0:05:09]} (17. exf5 Ne4 18. d6+ Kh8 $17) 17... Nxe4 {[%emt 0:09:07]} 18. d6+ {[%emt 0:09:22]} ({Much weaker is} 18. Nxe4 fxe4 19. Qg4 Bxd5 $15) 18... Kh8 {[%emt 0:00:10]} 19. Nxh7 $1 {[%emt 0:00:06][%mdl 64] Decoy} Nxg3 {[%emt 0:00:58]} 20. fxg3 $40 {[%emt 0:01:17][%mdl 128] Black needs to defend precisely.} g6 $1 {[%emt 0:01:14]} 21. Nxf8 {[%emt 0:01:50]} Qxf8 {[%emt 0:00:03]} 22. Bd5 {[%emt 0:00:46]} Bxd5 {[%emt 0:05:11]} 23. Qxd5 {[%emt 0:00:01]} Rd8 {[%emt 0:00:25]} 24. Ba3 {[%emt 0:00:26]} ({Don't go for} 24. d7 $2 Qe7 25. Rb2 Rxd7 $19) 24... Qh6 {[%emt 0:00:16]} (24... Qg8 $11 25. Qd2 e4) 25. Ke2 $1 $16 {[%emt 0:03:50] Black must now prevent Qe6.} e4 {[%emt 0:01:43] [#]} ({Black should play} 25... Qh5+ 26. Kf1 Kg7) 26. Bb2 {[%emt 0:03:29] Active counter play!} (26. Rc1 $142 $1) 26... Qg7 {[%emt 0:02:32] [#]} 27. Bxf6 {[%emt 0:01:29]} Qxf6 {[%emt 0:00:07][%mdl 4096] Endgame KQR-KQR} 28. Rd1 {[%emt 0:00:58][%cal Og3g4]} Kg7 {[%emt 0:05:10]} 29. d7 {[%emt 0:00:38]} Kf8 {[%emt 0:05:29]} 30. Ke3 {[%emt 0:04:04]} ({White should try} 30. Qd6+ $16 Kf7 31. Rd2) 30... Ke7 $1 $11 {[%emt 0:03:19]} 31. Qb5 {[%emt 0:02:11]} Qc3+ {[%emt 0:00:50]} 32. Ke2 {[%emt 0:00:54]} Qxg3 {[%emt 0:03:40]} 33. Qb4+ {[%emt 0:00:03]} Kf7 {[%emt 0:00:01]} (33... Ke6 34. Qc4+ Kf6 35. Qd4+ Kf7 36. Qc4+ Kf6 37. Qd4+ Kf7 38. Qc4+ Kf6 $11) 34. Qc4+ $1 {[%emt 0:00:49]} Kg7 {[%emt 0:00:53]} 35. Qd4+ $1 {[%emt 0:01:10]} Kh7 {[%emt 0:00:12]} 36. Qf2 {[%emt 0:01:01]} (36. Qf6 $11) 36... Qg4+ $17 {[%emt 0:00:38]} 37. Ke1 {[%emt 0:00:07]} f4 {[%emt 0:00:34]} 38. Rd4 {[%emt 0:00:13]} Rxd7 39. Rxd7+ {[%emt 0:00:00]} Qxd7 {[%emt 0:04:16]} 40. Qxf4 {[%emt 0:00:07]} Qe7 {[%emt 0:09:18] An interesting game.   Weighted Error Value: White=0.16 (very precise) /Black=0.13 (very precise)} 1/2-1/2

[Event "Israeli Team-ch 2023"]
[Site "Petah Tikva"]
[Date "2023.02.10"]
[Round "7.13"]
[White "Globus, Or"]
[Black "Abergel, Thal"]
[Result "1/2-1/2"]
[ECO "A37"]
[WhiteElo "2411"]
[BlackElo "2392"]
[Annotator "TA"]
[PlyCount "26"]
[EventDate "2023.01.13"]
[EventCountry "ISR"]
[SourceTitle "playchess.com"]
[Source "ChessBase"]
[SourceQuality "1"]
[TimeControl "40/5400+30:1800+30"]

{[%evp 12,26,9,8,8,16,5,6,16,0,11,0,0,0,0,0,22]} 1. Nf3 {[%emt 0:08:28]} c5 {[%emt 0:00:33]} 2. c4 {[%emt 0:04:49]} Nc6 {[%emt 0:00:20]} 3. Nc3 {[%emt 0:00:16]} g6 {[%emt 0:00:54]} 4. g3 {[%emt 0:00:22]} Bg7 {[%emt 0:00:21]} 5. Bg2 {[%emt 0:00:06]} d6 {[%emt 0:01:22]} 6. O-O {[%emt 0:00:05]} Nh6 {[%emt 0:01:19] [#] 6...e6 is setting a new trend.} 7. d4 $1 {[%emt 0:20:04] The position is equal.} cxd4 {[%emt 0:01:44] A37: Symmetrical English vs ...g6: 4 Bg2 Bg7 5 Nf3.} 8. Bxh6 {[%emt 0:03:08]} Bxh6 {[%emt 0:00:15]} 9. Nxd4 {[%emt 0:00:02]} Bd7 {[%emt 0:01:35]} 10. e3 {[%emt 0:00:23][%cal Oc4c5]} O-O {[%emt 0:00:23]} 11. Qe2 {[%emt 0:09:13] [#]} Bg7 $146 {[%emt 0:05:42]} ({Predecessor:} 11... Rc8 12. b3 Re8 13. Rfd1 Qa5 14. Nd5 Bg7 15. Rac1 Nxd4 16. exd4 e6 17. Ne3 b6 {0-1 Gaal,Z (2074)-Nguyen,V (2370) Budapest FS11 IM 2019 (7)}) 12. Rfd1 {[%emt 0:04:50]} Rc8 {[%emt 0:06:46]} 13. Rac1 {[%emt 0:06:42]} b6 {[%emt 1:15:46] An uneventful encounter.   Weighted Error Value: White=0.04 (flawless) /Black=0.02 (flawless)} 1/2-1/2

[Event "Israeli Team-ch 2023"]
[Site "Petah Tikva"]
[Date "2023.02.10"]
[Round "7.14"]
[White "Yaniv, Yuval"]
[Black "Gorodetzky, David"]
[Result "0-1"]
[ECO "C02"]
[WhiteElo "2366"]
[BlackElo "2492"]
[Annotator "TA"]
[PlyCount "144"]
[EventDate "2023.01.13"]
[EventCountry "ISR"]
[SourceTitle "playchess.com"]
[Source "ChessBase"]
[SourceQuality "1"]
[TimeControl "40/5400+30:1800+30"]

{[%evp 11,144,0,-3,-17,-22,-37,-22,-26,-44,-33,-18,-35,-26,-17,-28,-33,-31,-28,-33,-41,-12,-63,-62,-75,-72,-146,-56,-83,-58,-65,-58,-131,-152,-156,-95,-93,-100,-142,-144,-257,-120,-154,-121,-304,-138,-137,-123,-231,-197,-245,-222,-236,-123,-368,-335,-420,-485,-498,-419,-454,-500,-497,-496,-483,-461,-485,-488,-479,-464,-439,-431,-616,-581,-597,-556,-582,-566,-518,-480,-695,-666,-1054,-1040,-1016,-995,-955,-929,-9854,-7955,-4705,-4446,-3138,-2879,-10839,-9782,-9426,-9556,-9468,-9600,-9034,-9604,-8969,-9054,-7955,-7385,-6059,-5069,-2934,-222,-3564,-4468,-3291,-3291,-222,-222,-29971,-29971,-29971,-29971,-29970,-29972,-29972,-29973,-29977,-29977,-29977,-29978,-29980,-29981,-29984,-29985,-29986,-29984,-29984,-29985]} 1. e4 {[%emt 0:00:14]} e6 {[%emt 0:07:05]} 2. d4 {[%emt 0:00:23]} d5 {[%emt 0:00:06]} 3. e5 {[%emt 0:00:41]} c5 {[%emt 0:04:06]} 4. c3 {[%emt 0:00:18]} Nc6 {[%emt 0:00:29]} 5. Nf3 {[%emt 0:00:11]} Qb6 {[%emt 0:02:55]} 6. Bd3 {[%emt 0:00:24]} cxd4 {[%emt 0:03:09]} 7. O-O {[%emt 0:00:08] outshines the older 7.cxd4. C02: French: Advance Variation.} Bd7 {[%emt 0:02:25]} 8. Re1 {[%emt 0:00:15]} Nge7 {[%emt 0:11:11]} 9. h4 {[%emt 0:00:13] The position is equal.} Rc8 {[%emt 0:02:21]} 10. Nbd2 {[%emt 0:02:15]} Nf5 {[%emt 0:14:38]} 11. Nb3 {[%emt 0:09:08]} dxc3 {[%emt 0:03:41]} 12. bxc3 {[%emt 0:00:22]} Be7 {[%emt 0:06:13] [#]} 13. Rb1 $146 {[%emt 0:07:55][%cal Ob3d4]} ({Predecessor:} 13. h5 Na5 14. Rb1 Nc4 15. Nbd4 Qa6 16. Nxf5 exf5 17. Nd4 g6 18. Bh6 Be6 19. a4 {0-1 Yuan,Q (2373)-Grischuk,A (2742) Titled Tuesday intern op 17th May Late blitz 2022 (6)}) 13... Qd8 {[%emt 0:05:34]} (13... Bxh4 $2 14. Nbd4 Qa5 15. Nxf5 (15. Rxb7 Ncxd4 16. cxd4 Bd8 $11) 15... Bxf2+ 16. Kxf2 $18) 14. h5 {[%emt 0:17:01]} b6 {[%emt 0:06:54]} 15. Bc2 {[%emt 0:17:21]} g6 {[%emt 0:08:21]} 16. Nh2 {[%emt 0:05:08]} (16. Bd3 $11) 16... O-O $15 {[%emt 0:08:30]} 17. Ng4 {[%emt 0:01:01]} Kh8 {[%emt 0:03:21]} (17... gxh5 18. Bxf5 exf5 19. Nh6+ Kh8 20. Qxh5 $11) 18. Qf3 {[%emt 0:07:18]} (18. hxg6 $142 fxg6 19. Bd3) 18... Rg8 {[%emt 0:02:25]} ({Inferior is} 18... gxh5 19. Nh6 $15) (18... Nb4 $1 $17 {[%cal Rb4c2]} 19. Bxf5 gxf5) 19. Qh3 {[%emt 0:05:19]} Qf8 {[%emt 0:01:41]} 20. Nh6 {[%emt 0:05:49]} Rg7 {[%emt 0:02:57]} (20... Nxh6 $5 21. hxg6 fxg6 22. Bxh6 Qd8 $17) 21. Kh1 {[%emt 0:05:34]} (21. hxg6 $15 fxg6 22. Nxf5 gxf5 23. Bh6) 21... f6 $17 {[%emt 0:01:36]} 22. hxg6 {[%emt 0:03:10][%cal Rh6f5]} Nxe5 {[%emt 0:00:06]} ({Don't do} 22... Rxg6 23. Nxf5 exf5 24. e6 $18) (22... fxe5 $142 23. Nf7+ Rxf7 24. gxf7 Qxf7) 23. Nxf5 {[%emt 0:01:08]} exf5 {[%emt 0:00:23]} 24. Bh6 {[%emt 0:00:12]} hxg6 {[%emt 0:00:16][%cal Of5f4]} 25. Kg1 {[%emt 0:04:12] [#]} (25. Nd4 $17) 25... Qf7 $1 {[%emt 0:00:44]} 26. Bxg7+ {[%emt 0:00:06]} Kxg7 {[%emt 0:00:02]} 27. Nd4 $2 {[%emt 0:01:16]} (27. f4 $17 {is a better defense.} Ng4 28. Qf3) 27... Bd6 {[%emt 0:00:56]} (27... f4 $1 $19 {and Black stays clearly on top.} 28. Qh2 Rxc3 29. Qxf4 Bc5) 28. Qg3 {[%emt 0:01:53]} Nc4 {[%emt 0:01:30]} 29. Qd3 {[%emt 0:00:25]} (29. f4 $17 {was called for.}) 29... Rh8 $19 {[%emt 0:00:41]} 30. Bb3 {[%emt 0:02:05]} (30. a4 $142) 30... Ne5 $1 {[%emt 0:00:29]} 31. Qd2 {[%emt 0:02:23][%cal Ob3d5]} Ng4 {[%emt 0:00:40]} (31... Kf8 $19 {[%cal Oh8h2] And now ...Rh2! would win.} 32. f4 Ng4) 32. Nf3 $2 {[%emt 0:00:35] [#] Prevents Rh2} (32. f3 $17 {was the only chance.} Bh2+ 33. Kf1) 32... Bc5 $1 {[%emt 0:00:05] A strong pair of Bishops.} 33. Re2 {[%emt 0:00:40]} Bb5 {[%emt 0:00:17]} 34. Nd4 {[%emt 0:01:42]} Bxe2 {[%emt 0:00:56]} 35. Qxe2 {[%emt 0:00:01]} Bxd4 {[%emt 0:00:08]} 36. cxd4 {[%emt 0:00:01]} Qc7 {[%emt 0:00:55][%cal Oh8h1]} 37. g3 {[%emt 0:00:38]} Rh2 {[%emt 0:00:11]} 38. Re1 {[%emt 0:01:27]} Rxf2 {[%emt 0:00:45]} 39. Qe7+ {[%emt 0:00:14]} Qxe7 {[%emt 0:00:01]} 40. Rxe7+ {[%emt 0:00:01][%mdl 4096] Endgame KRB-KRN} Kh6 {[%emt 0:00:15]} 41. Rxa7 {[%emt 0:03:31]} (41. Bxd5 $142 Rd2 42. Bb3) 41... Rf3 {[%emt 0:09:06]} 42. Kg2 {[%emt 0:01:44]} Rd3 {[%emt 0:00:52]} 43. Rb7 {[%emt 0:02:11]} Rxd4 {[%emt 0:01:15]} 44. Rxb6 {[%emt 0:00:07]} Rd2+ {[%emt 0:02:47]} 45. Kg1 {[%emt 0:02:28]} (45. Kf1 $142 Nh2+ 46. Kg1 Nf3+ 47. Kf1) 45... d4 {[%emt 0:01:04][%cal Bd5d4,Bd4d3,Bd3d2][%mdl 32] Hoping for ...Kg5.} 46. a4 {[%emt 0:01:27]} Rb2 {[%emt 0:04:06]} 47. a5 {[%emt 0:00:25]} d3 {[%emt 0:03:04]} 48. Bd1 {[%emt 0:07:36]} Ra2 {[%emt 0:01:22]} 49. Bxg4 {[%emt 0:00:12]} fxg4 {[%emt 0:00:02] KR-KR} 50. Rd6 {[%emt 0:00:11]} d2 {[%emt 0:03:01]} 51. Kf1 {[%emt 0:00:07]} f5 {[%emt 0:01:25][%cal Bf6f5,Bf5f4][%mdl 32]} 52. a6 {[%emt 0:00:38] [#]} Rxa6 $3 {[%emt 0:01:47][%mdl 576] Promotion} 53. Rxd2 {[%emt 0:00:20]} g5 {[%emt 0:01:00]} 54. Rd4 {[%emt 0:02:27]} Rf6 {[%emt 0:02:14]} 55. Kf2 {[%emt 0:02:27]} f4 {[%emt 0:00:53]} 56. Ra4 {[%emt 0:00:48]} Kh5 {[%emt 0:00:36]} 57. Rb4 {[%emt 0:00:23]} Rf5 {[%emt 0:00:45]} 58. Ra4 {[%emt 0:00:53]} f3 {[%emt 0:00:47] Threatens to win with ...Rc5.} 59. Ra2 {[%emt 0:00:16]} Re5 $2 {[%emt 0:02:26]} (59... Rc5 60. Ke3 Rc1) 60. Rb2 $2 {[%emt 0:01:06]} (60. Rc2) 60... Kg6 {[%emt 0:00:35] ...Kf5 would be deadly.} 61. Kf1 {[%emt 0:01:10]} Kf5 {[%emt 0:00:36][%cal Oe5e2]} 62. Rb8 {[%emt 0:00:43]} Re2 {[%emt 0:00:26] ( -> ...Rg2)} 63. Rf8+ $2 {[%emt 0:09:50] [#]} (63. Rb5+ $19 Kg6 64. Rd5) 63... Kg6 $1 {[%emt 0:00:06] Black mates.} 64. Rg8+ {[%emt 0:00:04]} Kf6 {[%emt 0:00:13]} 65. Rf8+ {[%emt 0:00:13]} Kg7 {[%emt 0:00:21]} 66. Rf5 {[%emt 0:00:13]} Kg6 {[%emt 0:00:13]} 67. Ra5 {[%emt 0:00:04]} Rg2 {[%emt 0:00:08]} 68. Ra6+ {[%emt 0:00:03]} Kh5 {[%emt 0:00:21]} 69. Rf6 {[%emt 0:01:04]} Rxg3 {[%emt 0:00:27]} 70. Kf2 {[%emt 0:00:03]} Rg2+ {[%emt 0:00:09]} 71. Ke3 {[%emt 0:00:04]} Re2+ {[%emt 0:00:05]} 72. Kd3 {[%emt 0:00:03]} Re8 {[%emt 0:00:13] Weighted Error Value: White=0.55/Black=0.24 (precise)} 0-1

[Event "Israeli Team-ch 2023"]
[Site "Petah Tikva"]
[Date "2023.02.10"]
[Round "7.15"]
[White "Levin, Guy"]
[Black "Steiner-Prozhanski, Giora"]
[Result "1-0"]
[ECO "A13"]
[WhiteElo "2391"]
[BlackElo "2254"]
[Annotator "TA"]
[PlyCount "59"]
[EventDate "2023.01.13"]
[EventCountry "ISR"]
[SourceTitle "playchess.com"]
[Source "ChessBase"]
[SourceQuality "1"]
[TimeControl "40/5400+30:1800+30"]

{[%evp 14,59,6,0,28,0,41,29,42,43,35,31,27,21,32,22,27,29,259,187,183,183,169,195,186,173,190,177,189,177,171,141,238,239,233,44,57,20,27,52,253,245,925,895,934,903,879,820]} 1. Nf3 {[%emt 0:09:19]} Nf6 {[%emt 0:00:07]} 2. g3 {[%emt 0:00:05]} c5 {[%emt 0:00:35]} 3. Bg2 {[%emt 0:00:32]} d5 {[%emt 0:00:08]} 4. c4 {[%emt 0:00:54]} d4 {[%emt 0:00:56]} 5. O-O {[%emt 0:00:08]} Nc6 {[%emt 0:00:09]} 6. e3 {[%emt 0:00:08]} e6 {[%emt 0:01:15]} 7. exd4 {[%emt 0:01:50]} cxd4 {[%emt 0:00:07]} 8. d3 {[%emt 0:00:24]} h6 {[%emt 0:00:06] A13: English Opening: 1...e6.} 9. Na3 {[%emt 0:01:14]} Bd6 {[%emt 0:15:03]} 10. Nc2 $1 {[%emt 0:03:45]} e5 {[%emt 0:03:40] [#] White has an edge.} 11. b4 $1 {[%emt 0:01:37][%cal Bb2b4,Bb4b5][%mdl 32]} O-O {[%emt 0:00:50]} (11... Bxb4 $2 12. Nxb4 Nxb4 13. Qa4+ (13. Nxe5 O-O $16) 13... Nc6 14. Nxe5 $18) 12. Re1 {[%emt 0:10:54] Black must now prevent c5.} Re8 {[%emt 0:00:06]} (12... Bxb4 13. Nxb4 Nxb4 14. Nxe5 $16) 13. c5 $36 {[%emt 0:02:29][%mdl 2048] Black is under pressure.} Bc7 {[%emt 0:01:14]} 14. b5 {[%emt 0:05:39]} Na5 {[%emt 0:17:45] [#]} 15. Bd2 $146 {[%emt 0:06:35]} ({Predecessor:} 15. Nb4 Bd7 16. a4 Rc8 17. Ba3 Bf5 18. Nd2 Bb8 19. Rc1 Nd7 20. Qf3 Be6 21. Nd5 {1-0 Jumabayev,R (2654)-Lu,S (2615) SCO National Chess Online rapid 2020 (6.5)}) 15... Nd5 $2 {[%emt 0:09:39] [#]} (15... Bg4 $11 {and Black is okay.}) 16. Nfxd4 $1 {[%emt 0:07:06][%mdl 512]} Nf6 {[%emt 0:11:02]} 17. Nb3 {[%emt 0:08:06]} Nxb3 {[%emt 0:02:59]} 18. axb3 {[%emt 0:01:24][%cal Ob5b6]} Bg4 {[%emt 0:00:14]} 19. Qc1 {[%emt 0:03:24]} Qxd3 {[%emt 0:00:36]} 20. Bxb7 {[%emt 0:00:38]} Qxb5 {[%emt 0:00:16]} 21. Bxa8 {[%emt 0:02:39]} Rxa8 {[%emt 0:00:08]} 22. Ne3 {[%emt 0:03:17][%cal Bc2e3,Be3d5,Bd5c7][%mdl 32] Nxg4 would be deadly.} Bf3 {[%emt 0:04:12]} (22... Bc8 $16) 23. Qc4 $18 {[%emt 0:01:34]} Qd7 {[%emt 0:01:57]} 24. Bc3 {[%emt 0:03:25]} ({White must play} 24. Ba5 $18) 24... Ne4 $14 {[%emt 0:00:24]} 25. Nd5 {[%emt 0:10:52]} Ng5 {[%emt 0:12:56]} 26. Nxc7 {[%emt 0:00:11]} (26. Bxe5 $2 {loses.} Bxd5 27. Qd3 Nf3+ 28. Kf1 Bxe5 $19) 26... Nh3+ $2 {[%emt 0:05:16]} (26... Bc6 $1 $14) 27. Kf1 $18 {[%emt 0:00:05][%cal Bg1f1,Bf1e1,Be1d2][%mdl 32]} Nf4 $2 {[%emt 0:01:02]} (27... Qxc7 28. Rxe5 (28. Bxe5 Qb7 $18) 28... Qb7) 28. Re3 {[%emt 0:03:04] White is clearly winning.} (28. Nxa8 $2 {gets mated.} Qh3+ 29. Kg1 Qg2#) 28... Qh3+ {[%emt 0:11:03]} 29. Ke1 {[%emt 0:00:02]} Ng2+ {[%emt 0:00:35]} 30. Kd2 {[%emt 0:00:02] Weighted Error Value: White=0.22 (precise) /Black=0.36} 1-0

[Event "Israeli Team-ch 2023"]
[Site "Petah Tikva"]
[Date "2023.02.10"]
[Round "7.16"]
[White "Tifferet, Shaked"]
[Black "Iliaguev, Nisim"]
[Result "1/2-1/2"]
[ECO "B13"]
[WhiteElo "2226"]
[BlackElo "2390"]
[Annotator "TA"]
[PlyCount "96"]
[EventDate "2023.01.13"]
[EventCountry "ISR"]
[SourceTitle "playchess.com"]
[Source "ChessBase"]
[SourceQuality "1"]
[TimeControl "40/5400+30:1800+30"]

{[%evp 14,96,16,17,29,13,21,27,19,0,22,0,0,-17,20,8,22,16,13,15,13,0,0,13,31,14,29,25,29,22,34,24,55,33,26,30,30,25,34,8,8,8,15,8,83,81,82,87,81,81,83,84,90,77,126,122,121,97,89,88,119,107,114,73,104,87,120,80,86,0,101,45,51,17,29,14,54,0,9,0,0,0,0,0,0]} 1. e4 {[%emt 0:00:04]} c6 {[%emt 0:07:38]} 2. d4 {[%emt 0:00:12]} d5 {[%emt 0:00:06]} 3. exd5 {[%emt 0:00:06]} cxd5 {[%emt 0:00:06]} 4. Bd3 {[%emt 0:00:03]} Nc6 {[%emt 0:00:37]} 5. c3 {[%emt 0:00:10]} Nf6 {[%emt 0:00:58]} 6. h3 {[%emt 0:00:09]} e6 {[%emt 0:04:29]} 7. Nf3 {[%emt 0:00:09]} Bd6 {[%emt 0:00:32]} 8. O-O {[%emt 0:00:10]} O-O {[%emt 0:00:34] B13: Caro-Kann: Exchange Variation and Panov-Botvinnik Attack.} 9. Re1 {[%emt 0:00:08]} h6 {[%emt 0:01:49]} 10. Nbd2 {[%emt 0:00:21]} Qc7 {[%emt 0:01:49] White has an edge.} 11. Nf1 {[%emt 0:01:37]} Re8 {[%emt 0:05:17]} 12. Bc2 {[%emt 0:10:49] [#]} Bd7 $146 {[%emt 0:03:04]} ({Predecessor:} 12... e5 13. dxe5 Nxe5 14. Nxe5 Bxe5 15. Be3 Be6 16. Nd2 a6 17. Rc1 Rad8 18. Bb1 Qd6 {½-½ Moreno Perez,N (1841)-Sanchez Criado,L (2132) Barcelona Sant Marti op-A 5th 2016 (8)}) 13. Ne3 {[%emt 0:04:43]} Rad8 {[%emt 0:19:06]} 14. Ng4 {[%emt 0:12:58]} Nxg4 {[%emt 0:01:01]} 15. hxg4 {[%emt 0:00:02]} e5 {[%emt 0:50:54]} 16. dxe5 {[%emt 0:01:15]} Nxe5 {[%emt 0:00:00]} 17. Nxe5 {[%emt 0:00:18]} Bxe5 {[%emt 0:00:00]} 18. Be3 {[%emt 0:03:09]} Bh2+ {[%emt 0:00:00]} 19. Kh1 {[%emt 0:05:16]} Bf4 {[%emt 0:00:00]} 20. Qd3 {[%emt 0:04:44] [#] White wants to mate with Qh7+.} g6 {[%emt 0:00:00]} (20... Bxg4 $2 {leads to mate.} 21. Qh7+ (21. Bxa7 g6 $14) 21... Kf8 22. Bc5+ Qxc5 23. Qh8#) 21. Bxa7 {[%emt 0:04:19]} Bxg4 {[%emt 0:00:00] ...Re5 is the strong threat.} 22. Qd4 {[%emt 0:01:01] Dodges Re5. aiming for Bb6.} Qc4 {[%emt 0:00:00]} 23. Bb3 $36 {[%emt 0:09:01][%mdl 2048] White has some pressure.} Qxd4 {[%emt 0:00:00]} 24. Bxd4 {[%emt 0:00:09]} Be2 {[%emt 0:00:00]} 25. Bb6 {[%emt 0:13:37]} Rc8 {[%emt 0:00:00]} 26. Be3 {[%emt 0:04:46]} Bxe3 {[%emt 0:00:00]} 27. Rxe2 {[%emt 0:00:02]} Bc5 {[%emt 0:00:00]} 28. Rd2 {[%emt 0:06:00]} Re5 {[%emt 0:00:00]} (28... d4 $1 $11) 29. Bxd5 $16 {[%emt 0:08:20]} Bxf2 {[%emt 0:00:00][%cal Re5h5][%mdl 64] [#] Deflection} 30. Bxf7+ {[%emt 0:00:30][%mdl 64] Decoy} Kxf7 {[%emt 0:00:00][%cal Re5h5]} 31. Rxf2+ {[%emt 0:00:44][%mdl 4096] Endgame KRR-KRR} Kg7 {[%emt 0:00:00]} 32. Rd1 {[%emt 0:00:52] Threatens to win with Rd7+.} Rc7 {[%emt 0:00:00] Repels Rd7+} 33. Rfd2 {[%emt 0:02:43]} Ree7 {[%emt 0:00:00] Prevents Rd7.} (33... b5 $142) 34. Rd6 {[%emt 0:00:34]} h5 {[%emt 0:00:00]} 35. R1d2 {[%emt 0:04:14]} Kh6 {[%emt 0:00:00]} 36. Kh2 {[%emt 0:01:21]} Rf7 {[%emt 0:00:00]} 37. Rb6 {[%emt 0:02:34]} Rc4 {[%emt 0:00:34]} 38. Rd3 {[%emt 0:01:14]} Re4 {[%emt 0:04:13]} 39. Rg3 {[%emt 0:00:46]} Rg7 {[%emt 0:00:05]} 40. Rf3 {[%emt 0:00:37]} Rd7 {[%emt 0:02:45]} 41. Rg3 {[%emt 0:09:20]} Rg7 {[%emt 0:00:09]} 42. b4 {[%emt 0:02:29]} (42. Kh3 $16) 42... h4 $14 {[%emt 0:02:24]} 43. Rd3 {[%emt 0:00:30]} Kh5 $1 {[%emt 0:01:19]} 44. a4 {[%emt 0:08:40]} g5 {[%emt 0:01:19]} 45. Rbd6 {[%emt 0:03:58]} (45. Rf6 $14) 45... Re2 {[%emt 0:04:54] The position is equal.} 46. Rd7 {[%emt 0:00:55]} Rxd7 {[%emt 0:02:33]} 47. Rxd7 {[%emt 0:00:02]} g4 {[%emt 0:00:20] White must now prevent ...h3.} 48. Rd5+ {[%emt 0:04:10]} (48. Rxb7 h3 49. Kg3 Rxg2+ 50. Kf4 h2 51. Rh7+ Kg6 $19) 48... Kg6 {[%emt 0:01:36] Weighted Error Value: White=0.15 (very precise) /Black=0.12 (very precise)} 1/2-1/2